Workbook

Sheet Лист1
A1: Техническое задание на устройство инженерных систем
B2: наименование работ | D2: наименование материаллов, модель | E2: кол | F2: ед. | G2: стоим | H2: сумма | J2: общая
F3: измер. | H3: работ | I3: матер-ов | J3: стоимость
D4: Водоснабжение
B5: разводка гхвс, подвод к | J5: 59610
B6: потребителю | E6: 14 | F6: выходов | G6: 2000 | H6: 28000
D8: Кран шаровой ф-1/2 | E8: 3 | F8: шт | G8: 380 | I8: 1140
D9: кран американка ф- 3/4 | E9: 2 | F9: шт | G9: 670 | I9: =PRODUCT(E9,G9) -> 1340
D10: Трубы г хвс ф-20 | E10: 80 | F10: п.м | G10: 85 | I10: 6800
D11: установочная МПК | E11: 14 | F11: шт | G11: 160 | I11: 2240
D12: тройники поли-ые ф-20 | E12: 20 | F12: шт | G12: 35 | I12: 700
D13: угольник 45, ф20,25,32 | E13: 30 | F13: шт | G13: 25 | I13: 750
D14: угольник 90, ф20,25,32 | E14: 30 | F14: шт | G14: 25 | I14: 750
D15: клипсы для крепления трубы ф20 | E15: 50 | F15: шт | G15: 8 | I15: 400
D16: бойлер электрический 1.8кв 100л | E16: 1 | F16: шт | G16: 8000 | I16: 8000
D17: фильтр очистки | E17: 1 | F17: шт | G17: 1850 | I17: 1850
D18: элимент очистки | E18: 1 | F18: шт | G18: 550 | I18: 550
D19: футорки ф-25х3/4 бронза | E19: 2 | F19: шт | G19: 160 | I19: 320
D20: американки ф-1днх25 | E20: 0 | G20: 0 | I20: 0
D21: заглушки латунные ф-1\2 | E21: 14 | F21: шт | G21: 55 | I21: 770
F22: пм | G22: 0 | I22: 0
F23: шт | I23: 0
B24: обвязка и уст-ка бойлера | E24: 1 | F24: шт | G24: 6000 | H24: 6000 | I24: 0
D25: Канализация
B26: Подводка быт. канализации | E26: 6 | F26: точек | G26: 3500 | H26: =PRODUCT(E26,G26) -> 21000 | J26: =SUM(H26:I46) -> 31980
B27: к потребителю
D28: компенсатор ф110 | E28: 1 | F28: шт | G28: 150 | I28: =PRODUCT(E28,G28) -> 150
D29: канализационные трубы d110 | E29: 8 | F29: п.м | G29: 180 | I29: =PRODUCT(E29,G29) -> 1440
D30: канализационные трубы d50 | E30: 18 | F30: п.м | G30: 120 | I30: 2160
D31: тройники ф110 | E31: 4 | F31: шт | G31: 170 | I31: 680
D32: тройники ф110-ф50 косой | E32: 4 | F32: шт | G32: 120 | I32: 480
D33: тройники ф50 | E33: 8 | F33: шт | G33: 70 | I33: 560
D34: отводы ф110 поворот 45 гр | E34: 12 | F34: шт | G34: 85 | I34: 1020
D35: отводы ф50 поворот 45 гр | E35: 18 | F35: шт | G35: 55 | I35: 990
D36: рюмка ф110-ф50 | E36: 2 | F36: шт | G36: 160 | I36: 320
D37: аэраторы ф50 | E37: 3 | F37: шт | G37: 250 | I37: 750
D38: кронштейны ф110 | F38: шт | I38: 0
D39: крепежная лента | E39: 1 | F39: рул | G39: 600 | I39: 600
D40: клипсы ф-110 | E40: 10 | F40: шт | G40: 12 | I40: 120
D41: клипсы ф-50 | E41: 10 | F41: шт | G41: 7 | I41: 70
B42: траншея 1,8 м глубина | F42: п.м | H42: =PRODUCT(E42,G42) -> 0
B43: 0.5 м ширина.
D44: канализационные трубы Poliplast d32 | E44: 8 | F44: пм | G44: 110 | I44: =PRODUCT(E44,G44) -> 880
D45: переход ф50х32 | E45: 2 | G45: 80 | I45: =PRODUCT(E45,G45) -> 160
D46: отвод ф32 | E46: 12 | F46: шт | G46: 50 | I46: 600
D47: Отопление
B48: установка и обвязка котла | E48: 1 | F48: шт | G48: 20000 | H48: =PRODUCT(E48,G48) -> 20000 | J48: 87550
B49: отопления
D51: котел отопления одноконтурный | E51: 1 | F51: шт | G51: 30000 | I51: =PRODUCT(E51,G51) -> 30000
D52: 12квт электрический
D53: тройники-ф-3/4-1/2-3/4 | E53: 4 | F53: шт | G53: 285 | I53: =PRODUCT(E53,G53) -> 1140
D54: МПК ф-3\4 Х 25 | E54: 12 | F54: шт | G54: 160 | I54: =PRODUCT(E54,G54) -> 1920
D55: циркуляционный Grundfoss 25/60 | E55: 2 | F55: шт | G55: 6950 | I55: 13900
D56: фильтр грубой очистки ф-1дн | E56: 1 | F56: шт | G56: 850 | I56: 850
D57: нипель ф1дх3/4 | E57: 4 | F57: шт | G57: 180 | I57: 720
D58: краны шаровый ф 3/4 "американка" | E58: 8 | F58: шт | G58: 670 | I58: 5360
D59: расширительный бачок 24 литра | E59: 1 | F59: шт | G59: 3850 | I59: 3850
D60: кронштейн для расширительного бачка | E60: 1 | F60: шт | G60: 950 | I60: 950
D61: группа защиты котла | E61: 1 | F61: шт | G61: 3800 | I61: 3800
D62: кран подпитки котла | E62: 3 | F62: шт | G62: 380 | I62: 1140
D63: термомонометры задней под-ки | E63: 4 | F63: шт | G63: 980 | I63: 3920
A64: ЗАКАЗЧИК _________________ Страница 1 из 2 ПОДРЯДЧИК _________________
B67: наименование работ | D67: наименование материаллов, модель | E67: кол | F67: ед. | G67: стоим | H67: сумма | J67: общая
F68: измер. | H68: работ | I68: матер-ов | J68: стоимость
D69: колектор основного подмеса 2х кон. | E69: 2 | F69: шт | G69: 3000 | I69: =PRODUCT(E69,G69) -> 6000 | J69: 197601
B70: уст-ка основного калектора | E70: 2 | F70: шт | G70: 1500 | H70: 3000 | I70: 0
B71: сборка насосных групп | E71: 2 | F71: шт | G71: 7000 | H71: 14000 | I71: 0
D72: кран американка ф-1дн | E72: 2 | F72: шт | G72: 1280 | I72: =PRODUCT(E72,G72) -> 2560
D73: удленитель ф-1дн-10см | E73: 1 | F73: шт | G73: 980 | I73: 980
D74: футорки ф-1дн х 1.1\4 бронза | E74: 3 | F74: шт | G74: 380 | I74: 1140
B75: закачка жидкости и | F75: кон | H75: =PRODUCT(E75,G75) -> 0
B76: опресовка системы
D77: жидкость незамерзающая -30 | F77: литров | I77: =PRODUCT(E77,G77) -> 0
B78: разводка труб отопления | E78: 17 | F78: точек | G78: 3500 | H78: =PRODUCT(E78,G78) -> 59500
B79: до радиаторов
D80: кран угловой американка ф-1/2 х 20 | E80: 34 | F80: шт | G80: 360 | I80: =PRODUCT(E80,G80) -> 12240
D81: американки ф-1дн х 32ппр | E81: 4 | F81: шт | G81: 420 | I81: =PRODUCT(E81,G81) -> 1680
D82: кран ппр ф-32 | E82: 4 | F82: шт | G82: 355 | I82: 1420
D83: комплект футорок1дх1/2-3/4 | E83: 17 | F83: шт | G83: 340 | I83: 5780
D84: трубы арми-ые ф-25 | E84: 100 | F84: п.м | G84: 110 | I84: 11000
D85: трубы арми-ые ф-32 | E85: 30 | F85: п.м | G85: 125 | I85: 3750
D86: мпк ф-1дн х 32ппр | E86: 0 | F86: шт | G86: 0 | I86: 0
D87: футорки ф-25х3/4 бронза | E87: 4 | F87: шт | G87: 170 | I87: 680
D88: нипель ф-3/4 | E88: 4 | F88: шт | G88: 80 | I88: 320
D89: тройник ф-1дн | E89: 1 | F89: шт | G89: 380 | I89: 380
D90: тройники ф-25ппр | E90: 34 | F90: шт | G90: 40 | I90: 1360
D91: углы ф-25 45гр-90гр | E91: 100 | F91: шт | G91: 30 | I91: 3000
D92: муфты ф-25 | E92: 30 | F92: шт | G92: 20 | I92: 600
D93: фитинги ф-32 | E93: 50 | F93: шт | G93: 50 | I93: 2500
F94: шт | I94: 0
B95: установка и подключение | E95: 17 | F95: точек | G95: 1000 | H95: =PRODUCT(E95,G95) -> 17000
B96: радиаторов отопления
D97: радиаторы алюминевые 500x80(секция) | E97: 93 | F97: шт | G97: 487 | I97: =PRODUCT(E97,G97) -> 45291
D98: кронштейн крепления радиаторов | E98: 76 | F98: шт | G98: 45 | I98: =PRODUCT(E98,G98) -> 3420
F99: шт | I99: 0
D100: Расходные материалы
D101: расходные материалы | I101: 5000 | J101: =SUM(H101:I103) -> 10000
D102: доставка | I102: 5000
B103: 8 926 853 88 22 | D103: Дмитрий | I103: =PRODUCT(E103,G103) -> 0
E105: итого | H105: =SUM(H101:H103,H69:H99,H48:H63,H26:H46,H5:H24) -> 168500 | I105: =SUM(I101:I103,I69:I99,I48:I63,I26:I46,I5:I24) -> 218241 | J105: =SUM(J101:J103,J69:J99,J48:J63,J26:J46,J5:J24) -> 386741
A109: ЗАКАЗЧИК С КОМПЛЕКТАЦИЕЙ СОГЛАСЕН _____________________________________
A132: ЗАКАЗЧИК _________________ Страница 2 из 2 ПОДРЯДЧИК _________________

Sheet Лист3

Sheet Лист2
